[Event "4NCL 2021-22"]
[Site "England"]
[Date "2022.04.30"]
[Round "7.31"]
[White "Heritage, Jamie"]
[Black "Bhatia, Kanwal K"]
[Result "1/2-1/2"]
[ECO "C90"]
[WhiteElo "2114"]
[BlackElo "2010"]
[Annotator "TA"]
[PlyCount "83"]
[EventDate "2021.11.27"]
[EventType "team-tourn"]
[EventCountry "ENG"]
[SourceTitle "playchess.com"]
[Source "ChessBase"]
[SourceQuality "1"]
[TimeControl "40/6000+30:3000+30"]

{[%evp 23,83,10,14,12,20,-6,0,0,0,0,22,-25,-19,-21,-37,-83,-93,-89,-74,-154,-81,-89,-86,-128,-91,-175,-179,-177,-166,-150,-112,-133,-148,-140,-135,-231,-253,-301,-296,-277,-214,-216,-160,-189,-129,-150,-147,-366,-115,-213,-122,-126,-105,-124,-116,-120,-111,-169,9,12,14,10]} 1. e4 {[%emt 0:00:02]} e5 {[%emt 0:00:07]} 2. Nf3 {[%emt 0:00:07]} Nc6 {[%emt 0:00:05]} 3. Bb5 {[%emt 0:00:04]} a6 {[%emt 0:00:13]} 4. Ba4 {[%emt 0:00:06]} Nf6 {[%emt 0:00:08]} 5. d3 {[%emt 0:00:04]} b5 {[%emt 0:01:47]} 6. Bb3 {[%emt 0:00:13]} Be7 {[%emt 0:00:25]} 7. O-O {[%emt 0:01:49]} d6 {[%emt 0:00:30]} 8. c3 {[%emt 0:00:07]} O-O {[%emt 0:00:17]} 9. Re1 {[%emt 0:01:12]} Na5 {[%emt 0:02:08]} 10. Bc2 {[%emt 0:00:06]} c5 {[%emt 0:00:09]} 11. Nbd2 {[%emt 0:03:34]} Nc6 {[%emt 0:04:42]} 12. Nf1 {[%emt 0:05:10]} Qc7 {[%emt 0:02:55]} 13. a3 {[%emt 0:07:32] C90: Closed Ruy Lopez with 7...d6: Early deviations.} d5 {[%emt 0:07:07] [#]} 14. Ng3 $146 {[%emt 0:07:49]} ({Predecessor:} 14. Bg5 Rd8 15. exd5 Nxd5 16. Bxe7 Ndxe7 17. a4 b4 18. Bb3 h6 19. Ng3 bxc3 20. bxc3 {1-0 (36) Bender,I (2310)-Plenca,J (2364) Sibenik 2015}) 14... dxe4 {[%emt 0:07:56]} 15. dxe4 {[%emt 0:00:11]} Rd8 {[%emt 0:00:43]} 16. Qe2 {[%emt 0:00:09]} Be6 {[%emt 0:03:24]} 17. Ng5 {[%emt 0:35:46]} (17. Nf5 {is superior.}) 17... Bc4 $11 {[%emt 0:12:25]} 18. Qe3 {[%emt 0:06:42]} Na5 {[%emt 0:05:19] Inhibits b3.} 19. b4 {[%emt 0:02:29]} (19. Nf5 $15) 19... Nb3 $17 {[%emt 0:03:23]} 20. Bxb3 {[%emt 0:02:02]} Bxb3 {[%emt 0:00:06]} 21. Qf3 {[%emt 0:03:51]} (21. Nf5 $142) 21... Rd7 {[%emt 0:15:42]} (21... g6 $142 {Hoping for ...Bc4.} 22. Qe2 Bc4) 22. Nf5 {[%emt 0:02:38]} Bf8 $36 {[%emt 0:00:37][%mdl 2048] Black is really pushing.} 23. Be3 {[%emt 0:03:34]} Rad8 {[%emt 0:00:46]} 24. Qg3 {[%emt 0:02:07]} (24. Qh3 $17 {was called for.}) 24... g6 $19 {[%emt 0:10:07]} 25. Bxc5 {[%emt 0:13:56]} Bxc5 {[%emt 0:00:47]} 26. bxc5 {[%emt 0:00:22]} Qxc5 {[%emt 0:04:55]} 27. Nh6+ {[%emt 0:02:58]} Kg7 {[%emt 0:02:04]} 28. Nf5+ {[%emt 0:01:16]} Kh8 {[%emt 0:01:26]} 29. Nh6 {[%emt 0:00:19]} (29. Ne3 $17) 29... Nh5 {[%emt 0:06:52]} 30. Qh4 {[%emt 0:02:08]} f6 {[%emt 0:03:26]} 31. Nh3 {[%emt 0:01:25]} Qf8 {[%emt 0:10:08]} 32. Nf5 {[%emt 0:00:51]} Qf7 {[%emt 0:00:55]} 33. Ne3 {[%emt 0:00:43]} Be6 {[%emt 0:01:01]} ({Better is} 33... Rd3 $19 34. Rac1 g5) 34. g4 {[%emt 0:01:10]} Nf4 {[%emt 0:01:51]} 35. a4 $2 {[%emt 0:02:56] [#]} (35. Nxf4 $17 exf4 36. Nd5 Bxd5 37. exd5) 35... Rd2 $2 {[%emt 0:01:14]} (35... g5 $19 36. Qg3 Rd3 37. axb5 axb5) 36. axb5 {[%emt 0:00:18]} (36. Nxf4 $17 exf4 37. Nf1) 36... axb5 {[%emt 0:00:18]} (36... g5 $19 37. Qg3 axb5) 37. Nxf4 $17 {[%emt 0:01:29]} exf4 {[%emt 0:00:05]} 38. Nd5 {[%emt 0:00:38]} Bxd5 {[%emt 0:02:11]} 39. exd5 {[%emt 0:00:04]} R2xd5 {[%emt 0:00:24]} ({Much worse is} 39... R8xd5 $6 40. Qh6 $11) 40. Ra6 {[%emt 0:01:23]} (40. Qh6 $17) 40... Kg7 $2 {[%emt 0:01:04] [#]} ({Black should try} 40... Rd1 $19 41. Ra1 Rxa1 42. Rxa1 Qe7) 41. Rxf6 $1 $11 {[%emt 0:04:42]} Qxf6 {[%emt 0:05:46]} 42. Re7+ {[%emt 0:01:18] Weighted Error Value: White=0.36/Black=0.40} 1/2-1/2

[Event "4NCL 2021-22"]
[Site "England"]
[Date "2022.04.30"]
[Round "7.32"]
[White "Ratnesan, Radha"]
[Black "Arnott, Jonathan W"]
[Result "0-1"]
[ECO "D27"]
[WhiteElo "1623"]
[BlackElo "2121"]
[Annotator "TA"]
[PlyCount "100"]
[EventDate "2021.11.27"]
[EventType "team-tourn"]
[EventCountry "ENG"]
[SourceTitle "playchess.com"]
[Source "ChessBase"]
[SourceQuality "1"]
[TimeControl "40/6000+30:3000+30"]

{[%evp 12,100,15,10,65,0,12,-4,197,155,308,313,309,321,313,327,311,309,288,105,92,105,93,109,141,20,21,0,12,0,0,0,4,-44,0,0,0,-43,-34,-68,-32,-40,-42,-34,-9,-11,0,0,16,-14,-13,-18,-15,-19,-25,-57,0,0,0,0,23,26,20,20,20,34,20,0,82,0,0,0,13,-237,-225,-523,-504,-1633,-1479,-1804,-1529,-1047,-1020,-1646,-1649,-1632,-1166,-6091,-6091,-5122,-5122]} 1. d4 {[%emt 0:00:03]} e6 {[%emt 0:00:04]} 2. c4 {[%emt 0:00:09]} d5 {[%emt 0:00:08]} 3. Nc3 {[%emt 0:00:28]} a6 {[%emt 0:00:17]} 4. e3 {[%emt 0:00:59]} Nf6 {[%emt 0:00:44]} 5. Nf3 {[%emt 0:01:04]} dxc4 {[%emt 0:02:26]} 6. Bxc4 {[%emt 0:00:08]} c5 {[%emt 0:00:05]} 7. O-O {[%emt 0:08:55]} cxd4 {[%emt 0:02:22] D27: Queen's Gambit Accepted: Classical main line: 7 e4!? and 7 a4.} (7... b5 $11 8. Be2 Nbd7) 8. Nxd4 {[%emt 0:05:50]} (8. exd4 $14 b5 9. Bb3) 8... Bd6 $11 {[%emt 0:00:00] [#]} 9. Bd2 $146 {[%emt 0:11:16]} ({Predecessor:} 9. Bb3 O-O 10. e4 Qc7 11. Nf3 Nc6 12. h3 Ne5 13. Bg5 Nxf3+ 14. Qxf3 Bh2+ 15. Kh1 {1-0 (36) Socko,B (2604)-Hoffmann,M (2471) Germany 2016}) 9... Bxh2+ $2 {[%emt 0:08:35]} 10. Kxh2 $18 {[%emt 0:04:34] Black must now prevent Rc1.} Qc7+ $2 {[%emt 0:00:06]} (10... e5 $16 {is a better defense.}) 11. Kg1 {[%emt 0:00:09]} Qxc4 {[%emt 0:00:05] [#]} 12. Rc1 $1 {[%emt 0:08:43]} O-O {[%emt 0:27:11]} 13. Na4 {[%emt 0:05:38]} Qxa2 {[%emt 0:00:35]} 14. Nb6 {[%emt 0:01:35]} e5 {[%emt 0:02:59][%cal Oe5d4]} 15. Qb3 $2 {[%emt 0:14:14]} Qxb3 $16 {[%emt 0:10:19]} 16. Nxb3 {[%emt 0:00:05]} Be6 {[%emt 0:00:37]} 17. Nxa8 {[%emt 0:02:13]} Bxb3 {[%emt 0:01:21] [#]} 18. Nb6 {[%emt 0:06:24]} (18. Bb4 $1 $16 {[%cal Rb4f8]} Rd8 19. Be7) 18... Nc6 $11 {[%emt 0:01:20]} 19. Rc3 {[%emt 0:15:10][%mdl 1024] White has compensation.} Be6 {[%emt 0:00:30]} 20. f3 {[%emt 0:02:39]} Rd8 $36 {[%emt 0:03:21][%mdl 2048] Black has the initiative.} 21. Rf2 {[%emt 0:02:03]} e4 {[%emt 0:00:39]} 22. Bc1 {[%emt 0:03:34]} (22. Rc5 $11) 22... Rd1+ {[%emt 0:06:00]} (22... Ne5 $5 {[%cal Re4f3]}) 23. Rf1 {[%emt 0:01:48]} Rd6 {[%emt 0:01:15]} 24. Nc4 {[%emt 0:01:37]} Rd8 {[%emt 0:00:10]} 25. Nd2 {[%emt 0:01:02]} Nd5 {[%emt 0:01:12] Black is much more active.} 26. Ra3 {[%emt 0:01:07]} exf3 {[%emt 0:00:28]} 27. Nxf3 {[%emt 0:02:28]} Ndb4 {[%emt 0:00:13] Inhibits Rd3.} 28. Bd2 {[%emt 0:11:16]} Nc2 {[%emt 0:09:34]} 29. Rc3 {[%emt 0:00:00]} Bf5 {[%emt 0:00:02]} 30. Rf2 {[%emt 0:00:00]} f6 {[%emt 0:04:43]} 31. Nh4 {[%emt 0:00:00]} Be4 {[%emt 0:03:46]} 32. Rc4 {[%emt 0:00:00] Against N2b4} Bd3 {[%emt 0:01:22]} 33. Rg4 {[%emt 0:00:00]} Ne5 {[%emt 0:00:14]} ({Black should play} 33... Kf7 $15) 34. Rg3 $1 {[%emt 0:00:00]} Kf7 {[%emt 0:01:01]} 35. Bc3 {[%emt 0:00:00] And now Bxe5 would win.} Ng6 {[%emt 0:02:16]} 36. Nxg6 {[%emt 0:00:00]} hxg6 {[%emt 0:05:54][%cal Bh7g6,Bg6g5,Bg5g4][%mdl 32]} 37. Rd2 {[%emt 0:00:04][%cal Oe3e4] e4! is the strong threat.} Rd5 {[%emt 0:01:57]} 38. Rg4 {[%emt 0:01:59] Strongly threatening e4.} f5 {[%emt 0:03:51] Against e4} (38... Nxe3 $2 39. Rg3 $18) 39. Rf4 {[%emt 0:00:42]} Ke6 {[%emt 0:05:58]} ({Don't do} 39... Nxe3 40. Rf3 f4 41. Rxf4+ Bf5 42. Rf3 Rxd2 43. Bxd2 $16) (39... g5 $11 40. e4 (40. Rf3 g4 $15) 40... Bxe4 41. Rxd5 gxf4 42. Rd7+ Ke6 43. Rxg7 Ne3) 40. Bxg7 {[%emt 0:01:25]} (40. g4 $16) 40... g5 {[%emt 0:01:47]} 41. Rf3 {[%emt 0:01:29]} g4 {[%emt 0:01:04] Against Rh3} 42. Rg3 {[%emt 0:02:21]} (42. Rf4 $11 {and White stays safe.}) 42... Be4 $19 {[%emt 0:03:35]} 43. Rxd5 {[%emt 0:08:50]} (43. Bd4) 43... Kxd5 {[%emt 0:00:05][%mdl 4096] Endgame KRB-KBN. Black is clearly winning.} 44. Kf1 {[%emt 0:01:34]} (44. b3 $142 Kc5 45. Bc3) 44... Kc4 {[%emt 0:00:30]} 45. Ke2 {[%emt 0:00:07]} Nb4 {[%emt 0:00:38]} 46. Bc3 {[%emt 0:01:39]} Nd5 {[%emt 0:00:51]} 47. Bd4 {[%emt 0:00:18]} a5 {[%emt 0:00:38][%cal Ba6a5,Ba5a4][%mdl 32]} 48. Kd2 {[%emt 0:02:33]} Kb3 {[%emt 0:01:20] Hoping for ...Nb4.} 49. Be5 {[%emt 0:00:42]} a4 {[%emt 0:00:24]} 50. Bd6 {[%emt 0:01:54]} Kxb2 {[%emt 0:00:21] Weighted Error Value: White=0.73/Black=0.34} 0-1

[Event "4NCL 2021-22"]
[Site "England"]
[Date "2022.04.30"]
[Round "7.33"]
[White "McPhillips, Joseph"]
[Black "Merriman, John"]
[Result "1-0"]
[ECO "A70"]
[WhiteElo "2413"]
[BlackElo "2261"]
[Annotator "TA"]
[PlyCount "73"]
[EventDate "2021.11.27"]
[EventType "team-tourn"]
[EventCountry "ENG"]
[SourceTitle "playchess.com"]
[Source "ChessBase"]
[SourceQuality "1"]
[TimeControl "40/6000+30:3000+30"]

{[%evp 9,73,0,7,0,0,-6,-14,-22,-16,-22,1,0,0,0,0,-27,-11,-12,-3,-26,-12,-20,-20,-47,-49,-39,-39,-71,-79,-94,-32,-47,-51,-44,-36,-37,-35,-15,-22,-84,-79,-93,19,0,0,0,0,0,39,32,13,10,20,27,57,57,79,70,130,142,855,910,6514,6187,29990,29991]} 1. d4 {[%emt 0:03:43]} Nf6 {[%emt 0:03:17]} 2. Qd3 {[%emt 0:03:57]} c5 {[%emt 0:04:27]} 3. d5 {[%emt 0:05:10]} d6 {[%emt 0:02:30]} 4. e4 {[%emt 0:00:45]} g6 {[%emt 0:00:47] [#]} 5. Ne2 $146 {[%emt 0:02:34]} ({Predecessor:} 5. Nc3 Bg7 6. f4 O-O 7. Nf3 e6 8. dxe6 Bxe6 9. f5 c4 10. Qd1 gxf5 11. Bg5 fxe4 {0-1 (52) Jovicic,R (2217)-Zakic,S (2337) Belgrade 2018}) 5... Bg7 {[%emt 0:00:56]} 6. Ng3 {[%emt 0:03:32] A70: Modern Benoni: 6 e4 g6 7 Nf3.} O-O {[%emt 0:04:14]} 7. Be2 {[%emt 0:02:13]} e6 {[%emt 0:05:28]} 8. O-O {[%emt 0:01:37] The position is equal.} exd5 {[%emt 0:19:20]} 9. exd5 {[%emt 0:00:03]} Re8 {[%emt 0:02:07][%cal Ob7b5]} 10. Nc3 {[%emt 0:00:32]} Na6 {[%emt 0:01:27]} 11. Bf4 {[%emt 0:00:50]} Nc7 {[%emt 0:01:36][%cal Ob7b5]} 12. Rfe1 {[%emt 0:02:20]} a6 {[%emt 0:10:39][%cal Ba7a6,Ba6b5,Bb5b4][%mdl 32]} 13. a4 {[%emt 0:00:09]} Rb8 {[%emt 0:00:55]} 14. Bf3 {[%emt 0:03:43]} b5 {[%emt 0:03:01]} 15. Rxe8+ {[%emt 0:06:06]} Nfxe8 {[%emt 0:00:14]} 16. axb5 {[%emt 0:00:10]} axb5 {[%emt 0:00:09]} 17. Rb1 {[%emt 0:06:09]} b4 {[%emt 0:06:18]} 18. Nce4 {[%emt 0:00:14]} f5 {[%emt 0:09:06]} 19. Ng5 {[%emt 0:01:38]} h6 {[%emt 0:17:16]} (19... Qf6 $17) 20. Ne6 $1 $15 {[%emt 0:00:06]} Nxe6 {[%emt 0:00:18]} 21. dxe6 {[%emt 0:00:03]} Bxe6 {[%emt 0:02:44]} 22. Qe3 $1 {[%emt 0:00:31][%csl LRe6,LRh6]} Ba2 {[%emt 0:01:03]} 23. Ra1 {[%emt 0:00:10]} Bf7 {[%emt 0:00:49]} 24. Bxh6 {[%emt 0:00:10]} (24. Ra7 $11 {keeps the balance.}) 24... Bd4 $17 {[%emt 0:03:01]} 25. Qd2 {[%emt 0:06:16]} Qb6 {[%emt 0:04:02] Against Ra7} (25... Bxb2 $17 26. Ra7 Bc3) 26. c3 {[%emt 0:03:13]} bxc3 {[%emt 0:00:47]} 27. bxc3 {[%emt 0:00:02]} Be5 {[%emt 0:01:01]} 28. Bd5 {[%emt 0:00:26]} Nc7 {[%emt 0:01:31]} 29. Bxf7+ {[%emt 0:00:57]} Kxf7 {[%emt 0:00:05]} 30. Bf4 {[%emt 0:00:12]} Bxf4 {[%emt 0:02:20]} 31. Qxf4 {[%emt 0:00:03]} Ne6 {[%emt 0:00:31]} 32. Qd2 {[%emt 0:00:53]} Rb7 {[%emt 0:01:04]} 33. Re1 {[%emt 0:02:44]} Qc6 {[%emt 0:00:59] [#]} (33... Re7 $14) 34. h4 $1 $16 {[%emt 0:00:43] Threatens to win with h5.} ({But not} 34. Qh6 $6 f4) 34... Kf6 $2 {[%emt 0:02:33][%mdl 8192]} (34... f4 $16) 35. Qh6 $18 {[%emt 0:00:40] And now Nh5+ would win.} f4 {[%emt 0:00:51]} 36. Nh5+ {[%emt 0:10:29]} Kf5 {[%emt 0:00:20] [#]} 37. Nxf4 $1 {[%emt 0:00:15][%mdl 512] Weighted Error Value: White=0.09 (flawless) /Black=0.42} 1-0

[Event "4NCL 2021-22"]
[Site "England"]
[Date "2022.04.30"]
[Round "7.34"]
[White "Harakis, Alexis M"]
[Black "Hunt, Harriet V"]
[Result "1-0"]
[ECO "A50"]
[WhiteElo "2264"]
[BlackElo "2400"]
[Annotator "TA"]
[PlyCount "76"]
[EventDate "2021.11.27"]
[EventType "team-tourn"]
[EventCountry "ENG"]
[SourceTitle "playchess.com"]
[Source "ChessBase"]
[SourceQuality "1"]
[TimeControl "40/6000+30:3000+30"]

{[%evp 9,76,0,0,0,18,11,16,-24,-32,-30,-29,-35,-35,-28,0,-32,7,3,14,25,25,22,27,8,50,35,66,79,103,97,210,209,305,312,501,457,892,864,850,554,558,514,589,578,547,544,654,624,481,155,1080,825,1462,1167,2606,340,295,0,1378,1361,29977,269,29978,29976,29969,6203,29950,6079,6079]} 1. d4 {[%emt 0:08:27]} Nf6 {[%emt 0:00:58]} 2. c4 {[%emt 0:00:11]} e6 {[%emt 0:00:08]} 3. Bf4 {[%emt 0:00:07]} Bb4+ {[%emt 0:12:34]} 4. Nd2 {[%emt 0:05:37]} c5 {[%emt 0:05:14]} 5. a3 {[%emt 0:00:00]} Bxd2+ {[%emt 0:00:28]} 6. Qxd2 {[%emt 0:00:00] [#] A50: Queen's Fianchetto Defence (1 d4 Nf6 2 c4 b6).} Nc6 $146 {[%emt 0:14:11]} ({Predecessor:} 6... cxd4 7. Bxb8 Rxb8 8. Qxd4 b6 9. e4 O-O 10. Ne2 d6 11. Nc3 Bb7 12. Rd1 Qe7 {1-0 (51) Hasman,C (2072)-Petrovic,P (1964) Paracin 2016}) 7. dxc5 {[%emt 0:04:52]} Ne4 {[%emt 0:06:15][%csl LRc5,LRd2][%cal Bf6e4,Be4c5,Bc5e4][%mdl 32]} 8. Qd1 {[%emt 0:00:16] The position is equal.} Qf6 $1 {[%emt 0:03:07]} (8... Qh4 9. Be3 $16) 9. g3 {[%emt 0:09:14]} Qxb2 {[%emt 0:07:40] ...Qc3+ is the strong threat.} 10. Bg2 {[%emt 0:01:34]} Nxc5 {[%emt 0:03:40]} 11. Nf3 {[%emt 0:01:49]} Ne4 {[%emt 0:04:09] Strongly threatening ...Nc3. Pair of Knights!} 12. O-O {[%emt 0:00:50]} O-O {[%emt 0:02:48]} (12... Nc3 $5 {[%cal Rc3d1]} 13. Qd2 Qxd2 14. Bxd2 Nxe2+ 15. Kh1 f6 $11) 13. Qd3 {[%emt 0:07:39]} f5 {[%emt 0:04:45]} 14. Rab1 $36 {[%emt 0:05:12][%cal Ba1b1,Bb1b5,Bb5b8][%mdl 2080] White is more active.} Qf6 {[%emt 0:09:12]} 15. Nd2 {[%emt 0:02:36]} Nxd2 {[%emt 0:05:18]} 16. Qxd2 {[%emt 0:01:42]} b6 {[%emt 0:04:47]} (16... e5 $5 {[%cal Re5f4]} 17. Be3 d6 $11) 17. Rfc1 {[%emt 0:01:02]} h6 {[%emt 0:09:13]} 18. c5 {[%emt 0:00:44]} b5 {[%emt 0:01:06]} 19. Rxb5 {[%emt 0:05:59] White is more active.} e5 {[%emt 0:01:07]} (19... Ba6 $16 20. Bxc6 (20. Qxd7 Bxb5 21. Bxc6 Rfd8 $17) 20... dxc6) 20. Qd5+ $18 {[%emt 0:01:01]} Kh8 {[%emt 0:07:10] [#]} (20... Qf7 $142) 21. Bxe5 $1 {[%emt 0:00:18][%mdl 512]} Nxe5 {[%emt 0:00:35]} (21... Qg6 {was necessary.} 22. Qd6 Qxd6 23. cxd6 Ba6) (21... Qg5 22. f4) 22. Qxa8 {[%emt 0:00:13]} f4 {[%emt 0:01:18]} (22... Nc6 $142) 23. Rb8 {[%emt 0:01:30]} Qa6 {[%emt 0:03:41]} 24. gxf4 {[%emt 0:01:24]} Nc6 {[%emt 0:00:47]} 25. Bxc6 {[%emt 0:01:06]} dxc6 {[%emt 0:00:01]} 26. Rc2 {[%emt 0:01:16]} Kh7 {[%emt 0:00:38]} 27. Rcb2 {[%emt 0:00:54]} Rd8 {[%emt 0:01:04][%cal Oa6c4]} 28. Kg2 {[%emt 0:00:52]} Qxa3 {[%emt 0:00:54] [#]} 29. R2b3 {[%emt 0:05:24] Inhibits Qh3+.} (29. Rxc8 $1 $18 {and the rest is easy.} Rxc8 30. Qxc8 Qxb2 31. Qxc6 Qxe2 32. Qd6 Qe4+ 33. Kg3) 29... Qa6 $2 {[%emt 0:01:00]} (29... Qxb3 $16 30. Rxb3 Bh3+ 31. Kxh3 (31. Rxh3 Rxa8 32. Ra3 a5 $16) 31... Rxa8) 30. Re3 {[%emt 0:01:27]} Rf8 {[%emt 0:01:01]} 31. f5 {[%emt 0:00:19]} Rd8 {[%emt 0:00:24]} 32. Re7 $2 {[%emt 0:00:26]} (32. h3 {[%cal Oe3e6] Threatens to win with Re6!} Kh8 33. Re6 $1 {[%mdl 512]}) 32... Qc4 {[%emt 0:00:32] ( -> ...Qg4+)} 33. f3 {[%emt 0:01:27] Against Qg4+} (33. e4 Rd1 34. Rb3 (34. Rxc8 Qf1+ 35. Kg3 Rd3+ 36. Kg4 Qg2+ 37. Kf4 Qxf2+ 38. Ke5 Qb2+ 39. Kf4 Qxh2+ 40. Kg4 Qh3+ 41. Kf4 Qg3#) 34... Qf1+ 35. Kg3 Qg1+ 36. Kh3 (36. Kf3 $2 Rd2 $19) 36... Qf1+ 37. Kg3 Qg1+ 38. Kh3 (38. Kf3 $2 Rd2 $19) 38... Qf1+ 39. Kg3 $11) (33. Rb1 $1 $18) 33... Qxc5 $2 {[%emt 0:00:43][%mdl 8192]} 34. Qxa7 {[%emt 0:00:36]} Qxf5 {[%emt 0:00:06]} 35. Rxg7+ {[%emt 0:00:25]} Kh8 {[%emt 0:00:01]} 36. Rg4 {[%emt 0:00:20][%csl Gg4][%cal Ra7g7]} Qe5 {[%emt 0:00:14] [#]} 37. Qa2 $1 {[%emt 0:01:43][%mdl 512]} Re8 {[%emt 0:01:05] [#]} (37... Rf8 38. Kh1) 38. Qd2 $1 {[%emt 0:03:11][%mdl 512]} Qxe2+ {[%emt 0:00:00] Weighted Error Value: White=0.36/Black=0.37} (38... Qf6 39. Qc2) 1-0

[Event "4NCL 2021-22"]
[Site "England"]
[Date "2022.04.30"]
[Round "7.35"]
[White "O'Donnell, Conor"]
[Black "Ratnesan, Ranesh"]
[Result "1/2-1/2"]
[ECO "D35"]
[WhiteElo "2281"]
[BlackElo "2258"]
[Annotator "TA"]
[PlyCount "64"]
[EventDate "2021.11.27"]
[EventType "team-tourn"]
[EventCountry "ENG"]
[SourceTitle "playchess.com"]
[Source "ChessBase"]
[SourceQuality "1"]
[TimeControl "40/6000+30:3000+30"]

{[%evp 16,64,31,20,27,18,25,25,43,-5,-17,-67,-42,-32,-35,-37,-46,-44,8,2,65,72,58,82,70,77,62,63,79,91,119,40,55,0,0,0,0,-64,-66,-125,0,0,0,-109,44,0,0,-107,56,0,0]} 1. d4 {[%emt 0:03:53]} d5 {[%emt 0:00:14]} 2. c4 {[%emt 0:00:22]} e6 {[%emt 0:00:12]} 3. Nc3 {[%emt 0:01:24]} Nf6 {[%emt 0:00:08]} 4. cxd5 {[%emt 0:00:29]} exd5 {[%emt 0:00:06]} 5. Bg5 {[%emt 0:00:07]} c6 {[%emt 0:00:12]} 6. e3 {[%emt 0:00:05]} Be7 {[%emt 0:00:05]} 7. Bd3 {[%emt 0:00:21]} Nbd7 $1 {[%emt 0:00:11] 7...Nbd7 scores better than 7...0-0.} 8. Nf3 {[%emt 0:03:24]} h6 {[%emt 0:00:27]} 9. Bf4 {[%emt 0:03:25]} Nh5 {[%emt 0:04:10] D35: Queen's Gambit Declined: Exchange Variation.} 10. Be5 {[%emt 0:01:46]} Nxe5 {[%emt 0:06:22]} 11. dxe5 {[%emt 0:07:41]} g6 {[%emt 0:06:11] [#] White has an edge.} 12. Rg1 $146 {[%emt 0:07:10]} (12. Qc2 $14 {should be considered.}) ({Predecessor:} 12. h3 Ng7 13. O-O O-O 14. Qd2 h5 15. Nd4 c5 16. Nc2 Be6 17. f4 h4 18. Rad1 {1-0 (44) Sarana,A (2685)-Harsha,B (2499) Chess.com INT 2022}) 12... Ng7 {[%emt 0:06:02]} 13. g4 {[%emt 0:04:37]} (13. Qc2 $11) 13... Qb6 {[%emt 0:16:00]} 14. Qc2 {[%emt 0:11:57]} Be6 {[%emt 0:07:57]} 15. O-O-O {[%emt 0:00:35]} ({Wrong is} 15. Bxg6 $2 fxg6 16. Qxg6+ Bf7 $19) 15... O-O-O {[%emt 0:02:07]} 16. Nd4 {[%emt 0:02:56]} c5 {[%emt 0:05:58]} (16... Kb8 $15) 17. Nxe6 $11 {[%emt 0:01:50]} (17. Kb1 {keeps more tension.} Kb8 18. Nxe6 Qxe6 19. f4) 17... Nxe6 {[%emt 0:00:13] [#]} (17... Qxe6 $11 18. f4 Kb8) 18. Bxg6 $1 $14 {[%emt 0:11:41]} fxg6 {[%emt 0:09:35]} 19. Nxd5 {[%emt 0:00:03]} Rxd5 {[%emt 0:00:20]} 20. Rxd5 {[%emt 0:00:04]} Nc7 {[%emt 0:02:22]} 21. Rd2 {[%emt 0:03:28]} Qc6 {[%emt 0:07:45]} 22. Rgd1 {[%emt 0:04:59]} Re8 {[%emt 0:03:41] [#]} 23. Qd3 {[%emt 0:09:13]} (23. Rd6 $1 $16 {[%mdl 512]} Bxd6 24. exd6) 23... Na8 {[%emt 0:05:40]} 24. Qc4 {[%emt 0:05:33]} (24. a4 $14) 24... Rf8 $1 $11 {[%emt 0:08:43]} 25. f4 {[%emt 0:02:01]} Nb6 {[%emt 0:00:10] Prevents Qd5.} 26. Qf1 {[%emt 0:06:24]} (26. Qc2 $11) 26... Qe6 $15 {[%emt 0:02:10][%csl LRa2,LRg4][%mdl 1024] Black has compensation.} 27. b3 {[%emt 0:02:28] Against Nc4} (27. Qb5 $15) 27... Qxg4 {[%emt 0:00:40]} (27... Kb8 $17 28. Kb2 c4) 28. a4 $1 $11 {[%emt 0:00:19] And now a5 would win.} Qe6 {[%emt 0:06:05]} 29. Qb5 {[%emt 0:03:15] [#]} ({Much weaker is} 29. a5 Qxb3 $1 30. axb6 c4 $15) (29. Kb2 $1 $11) 29... Na8 $2 {[%emt 0:02:37]} ({Black should try} 29... a6 $1 $17 {[%cal Ra6b5]} 30. Qd3 Kb8) 30. Rd7 $2 {[%emt 0:03:49]} (30. Qd7+ $14 Qxd7 31. Rxd7) 30... Nb6 $17 {[%emt 0:00:10]} 31. R7d2 {[%emt 0:02:20]} Na8 $2 {[%emt 0:01:29]} ({Black should play} 31... a6 $17 32. Qd3 Rd8) 32. Rd7 {[%emt 0:00:17]} (32. Qd7+ $14 Qxd7 33. Rxd7) 32... Nb6 {[%emt 0:00:19] Weighted Error Value: White=0.23 (precise) /Black=0.28 (precise)} 1/2-1/2